bitfinex-derivatives/quotes_SOLF0:USTF0_20240830
["timestamp","ask_amount","ask_price","bid_price","bid_amount"]
[1725012286110,11.0,139.61,139.6,3.5813]
[1725012287086,0.05457158,139.62,139.61,3.5812]
[1725012287288,11.05457158,139.62,139.61,3.5812]
[1725012291594,11.05457158,139.62,139.59,0.05438374]
[1725012291804,0.05457158,139.62,139.59,0.05438374]
[1725012291999,11.0,139.61,139.59,0.05438374]
[1725012292402,0.05457158,139.62,139.59,0.05438374]
[1725012292999,0.05457158,139.62,139.61,3.5812]
[1725012298703,11.05457158,139.62,139.61,3.5812]
[1725012299314,0.05457158,139.62,139.61,3.5812]
[1725012310314,0.05457158,139.62,139.59,0.05438374]
[1725012310516,11.0,139.61,139.59,0.05438374]
[1725012311327,11.0,139.61,139.59,3.63598374]
[1725012311818,11.05457158,139.62,139.6,3.5814]
[1725012313011,14.63557158,139.62,139.6,3.5814]
[1725012313417,11.0,139.61,139.59,3.63588374]
[1725012313623,3.5814,139.61,139.59,3.63588374]
[1725012313930,11.0,139.6,139.59,3.63588374]
[1725012314113,14.5814,139.6,139.59,0.05438374]
[1725012321821,3.5814,139.6,139.59,0.05438374]
[1725012322029,14.5814,139.6,139.59,0.05438374]
[1725012326427,0.05457158,139.62,139.59,0.05438374]
[1725012326923,0.05457158,139.62,139.61,3.5812]
[1725012336225,72.64,139.75,139.61,11.0]
[1725012336226,4.4,139.68,139.61,11.0]
[1725012336434,4.4,139.68,139.58,7.71855468]
[1725012336435,2.7969,139.72,139.58,7.71855468]
[1725012336636,14.5794,139.68,139.65,3.5799]
[1725012336833,14.5794,139.68,139.62,11.0]
[1725012337230,0.05104444,139.66,139.65,3.5801]
[1725012341036,0.05104444,139.66,139.64,3.62941964]
[1725012341243,11.05104444,139.66,139.64,3.62941964]
[1725012341726,14.62150126,139.66,139.64,0.04911964]
[1725012341924,14.62150126,139.66,139.58,7.61825012]
[1725012342136,11.0,139.62,139.58,7.61825012]
[1725012342330,11.0,139.62,139.58,4.0682]
[1725012342634,11.0,139.62,139.6,3.5812]
[1725012342832,11.05044772,139.62,139.6,3.62710486]
[1725012349344,0.05044772,139.62,139.6,3.62710486]
[1725012349642,11.05044772,139.62,139.6,3.62710486]
[1725012352343,14.63144772,139.62,139.6,3.62710486]
[1725012353438,11.05044772,139.62,139.6,3.62710486]
[1725012356450,14.63134772,139.62,139.6,3.62710486]
[1725012356741,11.05044772,139.62,139.6,3.62710486]
[1725012357341,11.05044772,139.62,139.6,0.04590486]
[1725012358337,14.63144772,139.62,139.6,3.62730486]
[1725012359338,11.05044772,139.62,139.6,3.62730486]
[1725012360845,14.63144772,139.62,139.6,0.04590486]
[1725012361346,0.05044772,139.62,139.6,0.04590486]
[1725012361949,0.05044772,139.62,139.6,3.62720486]
[1725012363547,0.05044772,139.62,139.61,3.5812]
[1725012366450,1.3888,139.7,139.63,3.5806]
[1725012366656,14.58,139.66,139.63,3.5806]
[1725012367254,14.58,139.66,139.64,3.5804]
[1725012367552,14.62723238,139.66,139.64,3.62716754]
[1725012369548,3.83,139.65,139.64,3.62716754]
[1725012371256,1.699,139.65,139.64,3.62716754]
[1725012372549,0.04723238,139.66,139.65,3.5802]
[1725012372768,0.04723238,139.66,139.65,14.5802]
[1725012372950,11.0,139.7,139.65,11.0]
[1725012373157,11.0,139.7,139.66,3.62666475]
[1725012373453,11.0,139.7,139.65,11.0]
[1725012373454,11.0,139.7,139.68,3.5792]
[1725012373853,11.04705052,139.7,139.68,3.62934255]
[1725012374450,2.43,139.69,139.68,3.62934255]
[1725012377262,0.04705052,139.7,139.69,3.5791]
[1725012377659,0.04705052,139.7,139.69,4.8656]
[1725012377969,11.0,139.75,139.69,1.2865]
[1725012378462,11.0,139.77,139.7,11.0]
[1725012378960,0.04855918,139.75,139.74,3.5778]
[1725012379165,0.05414726,139.76,139.73,0.04707654]
[1725012379666,0.05414726,139.76,139.75,3.5774]
[1725012380272,0.05414726,139.76,139.75,14.5774]
[1725012383158,0.05414726,139.76,139.75,3.5774]
[1725012384468,11.05414726,139.76,139.73,3.62497654]
[1725012384663,11.05414726,139.76,139.73,0.04707654]
[1725012384963,11.0,139.75,139.73,0.04707654]
[1725012387273,14.63164726,139.76,139.73,0.04707654]
[1725012388771,11.0,139.75,139.73,0.04707654]
[1725012390263,3.5778,139.74,139.73,0.04707654]
[1725012391470,3.5777,139.75,139.73,0.04707654]
[1725012391661,0.05414726,139.76,139.73,0.04707654]
[1725012392163,0.05414726,139.76,139.73,3.62507654]
[1725012392164,3.63164726,139.76,139.73,3.62507654]
[1725012392970,0.05414726,139.76,139.74,3.5778]
[1725012394072,3.63154726,139.76,139.74,3.5778]
[1725012398064,11.05414726,139.76,139.73,0.04707654]
[1725012398273,11.0,139.74,139.73,0.04707654]
[1725012398477,14.5778,139.74,139.73,0.04707654]
[1725012399271,11.0,139.74,139.66,85.13489883]
[1725012399477,11.0,139.7,139.66,85.13489883]
[1725012399679,11.0,139.69,139.67,3.5794]
[1725012400273,11.04668156,139.69,139.67,3.62623017]
[1725012400775,0.04668156,139.69,139.67,3.62623017]
[1725012400976,0.04668156,139.69,139.68,3.5794]
[1725012402375,1.357,139.77,139.7,3.5787]
[1725012402572,11.0,139.76,139.7,14.5787]
[1725012402769,3.5777,139.75,139.7,14.5787]
[1725012402976,3.5777,139.75,139.71,3.5786]
[1725012403378,0.05202875,139.74,139.72,0.0473841]
[1725012407781,3.62992875,139.74,139.72,0.0473841]
[1725012413792,0.05202875,139.74,139.72,3.6256841]
[1725012413997,0.05202875,139.74,139.72,0.0473841]
[1725012414394,0.05202875,139.74,139.72,3.6254841]
[1725012415698,3.63002875,139.74,139.72,0.0473841]
[1725012415894,14.63002875,139.74,139.72,0.0473841]
[1725012417197,3.5781,139.73,139.72,0.0473841]
[1725012417594,11.05202875,139.74,139.72,0.0473841]
[1725012418294,11.0,139.73,139.72,0.0473841]
[1725012418697,0.05202875,139.74,139.72,3.6257841]
[1725012421701,0.05202875,139.74,139.73,3.5781]
[1725012430920,0.05202875,139.74,139.73,14.5781]
[1725012442125,0.05202875,139.74,139.73,15.9054]
[1725012444424,0.05202875,139.74,139.73,3.5781]
[1725012449629,0.05202875,139.74,139.72,0.0473841]
[1725012450134,3.62992875,139.74,139.72,0.0473841]
[1725012451733,3.5781,139.73,139.72,0.0473841]
[1725012452024,0.05202875,139.74,139.72,0.0473841]
[1725012452429,3.63002875,139.74,139.72,0.0473841]
[1725012452634,0.05202875,139.74,139.72,0.0473841]
[1725012452832,0.05202875,139.74,139.73,3.5781]
[1725012456532,0.05202875,139.74,139.72,3.6256841]
[1725012456533,3.62982875,139.74,139.72,3.6256841]
[1725012460642,0.05202875,139.74,139.73,3.5781]
[1725012462435,3.63002875,139.74,139.72,3.6255841]
[1725012466550,14.5781,139.73,139.72,0.0473841]
[1725012480256,11.0,139.73,139.72,3.6257841]
[1725012480460,11.0,139.73,139.72,0.0473841]
[1725012480850,3.62992875,139.74,139.72,0.0473841]
[1725012481677,0.05202875,139.74,139.73,3.5781]
[1725012486067,0.05202875,139.74,139.72,3.6255841]
[1725012486872,0.05202875,139.74,139.73,3.5781]
[1725012489577,3.62982875,139.74,139.72,3.6255841]
[1725012490176,0.05202875,139.74,139.73,3.5781]
[1725012490478,11.05202875,139.74,139.72,0.0473841]
[1725012490769,11.0,139.73,139.72,0.0473841]
[1725012490971,11.0,139.73,139.59,3.31902364]
[1725012491274,11.0,139.69,139.63,11.0]
[1725012491476,11.0,139.69,139.63,15.34]
[1725012491773,11.0,139.69,139.63,11.0]
[1725012491968,11.0522472,139.68,139.66,3.5799]
[1725012492363,0.0522472,139.68,139.66,3.5799]
[1725012497999,0.0522472,139.68,139.67,3.5796]
[1725012502580,11.0522472,139.68,139.65,0.0548015]
[1725012502779,14.5799,139.66,139.65,0.0548015]
[1725012502977,11.0,139.66,139.58,6.2285]
[1725012503177,3.5814,139.61,139.58,4.8708]
[1725012504094,3.62837342,139.61,139.58,4.92578772]
[1725012504382,11.04697342,139.61,139.58,0.05498772]
[1725012504581,15.38697342,139.61,139.58,0.05498772]
[1725012504982,0.04697342,139.61,139.58,3.63678772]
[1725012505686,0.04697342,139.61,139.59,3.5816]
[1725012505882,0.04697342,139.61,139.58,0.05498772]
[1725012507283,0.04697342,139.61,139.59,3.5817]
[1725012510090,3.62817342,139.61,139.58,3.63678772]
[1725012511589,0.04697342,139.61,139.59,3.5817]
[1725012513883,3.62817342,139.61,139.59,3.5817]
[1725012514200,14.62817342,139.61,139.59,3.5817]
[1725012516786,3.5815,139.6,139.58,3.63678772]
[1725012516985,11.04697342,139.61,139.58,0.05498772]
[1725012516986,11.0,139.59,139.58,0.05498772]
[1725012517386,14.5817,139.59,139.58,0.05498772]
[1725012523392,11.0,139.59,139.58,0.05498772]
[1725012523596,15.40697342,139.61,139.58,3.63688772]
[1725012523987,18.98837342,139.61,139.58,0.05498772]
[1725012524190,18.98837342,139.61,139.59,3.5817]
[1725012525090,3.5816,139.6,139.58,3.63678772]
[1725012525894,3.5816,139.6,139.58,0.05498772]
[1725012526398,11.0,139.6,139.58,0.05498772]
[1725012527298,3.5817,139.59,139.58,0.05498772]
[1725012531204,3.5815,139.6,139.58,3.63678772]
[1725012532606,14.5817,139.59,139.58,0.05498772]
[1725012532899,11.0,139.59,139.58,0.05498772]
[1725012534403,11.0,139.59,139.58,3.63688772]
[1725012538099,3.5814,139.6,139.58,3.63688772]
[1725012539706,14.62827342,139.61,139.58,3.63688772]
[1725012539909,18.98827342,139.61,139.58,3.63688772]
[1725012540426,18.98827342,139.61,139.59,3.5816]
[1725012540908,7.98827342,139.61,139.59,3.5816]
[1725012541115,0.04697342,139.61,139.59,3.5816]
[1725012541614,3.62817342,139.61,139.59,3.5816]
[1725012543517,3.62817342,139.61,139.58,3.63678772]
[1725012545012,3.62817342,139.61,139.59,3.5817]
[1725012552228,3.62817342,139.61,139.6,3.5814]
[1725012552527,3.62817342,139.61,139.58,0.05498772]
[1725012552721,3.62817342,139.61,139.59,3.5815]
[1725012560633,3.5814,139.6,139.58,3.63678772]
[1725012561231,3.5816,139.6,139.58,0.05498772]
[1725012562032,3.5816,139.6,139.58,3.63688772]
[1725012565133,3.62827342,139.61,139.58,3.63688772]
[1725012565342,3.62827342,139.61,139.59,3.5817]
[1725012565532,0.04697342,139.61,139.58,0.05498772]
[1725012565735,0.04697342,139.61,139.59,11.0]
[1725012565932,0.04697342,139.61,139.6,3.5814]
[1725012568334,0.04697342,139.61,139.6,18.19467985]
[1725012568529,4.36,139.67,139.64,3.5803]
[1725012568737,15.36,139.68,139.63,11.0]
[1725012568949,7.9395,139.68,139.63,11.0]
[1725012569133,7.9395,139.68,139.64,3.5802]
[1725012569333,4.36,139.69,139.64,11.0]
[1725012569534,0.0534595,139.68,139.65,0.04524828]
[1725012569739,0.0534595,139.68,139.66,3.5797]
[1725012570746,0.0534595,139.68,139.67,3.5796]
[1725012572839,0.0534595,139.68,139.67,14.5796]
[1725012576643,16.7667,139.75,139.67,14.66847125]
[1725012576846,12.3467,139.75,139.69,11.0]
[1725012577250,3.578,139.74,139.71,3.5785]
[1725012577646,3.63097824,139.74,139.71,3.62811274]
[1725012578140,3.63097824,139.74,139.72,3.5783]
[1725012578842,0.05297824,139.74,139.72,3.5783]
[1725012579646,0.05297824,139.74,139.73,3.5781]
[1725012583445,0.05297824,139.74,139.72,3.5783]
[1725012588262,0.05297824,139.74,139.71,0.04961274]
[1725012588952,3.63097824,139.74,139.72,3.5783]
[1725012591359,3.63097824,139.74,139.71,0.04961274]
[1725012591360,3.5781,139.73,139.71,3.62811274]
[1725012595157,3.63097824,139.74,139.72,3.5784]
[1725012595770,3.63097824,139.74,139.71,0.04961274]
[1725012595771,0.05297824,139.74,139.73,3.5781]
[1725012596962,0.05297824,139.74,139.72,3.5782]
[1725012598370,0.05297824,139.74,139.72,3.5784]
[1725012599472,3.63087824,139.74,139.71,3.62811274]
[1725012599662,0.05297824,139.74,139.71,3.62811274]
[1725012600168,0.05297824,139.74,139.72,3.5783]
[1725012601361,3.63097824,139.74,139.72,3.5783]
[1725012603062,3.5781,139.73,139.71,3.62811274]
[1725012603569,14.5784,139.72,139.71,0.04961274]
[1725012606476,0.05297824,139.74,139.71,0.04961274]
[1725012606880,3.5781,139.73,139.71,3.62821274]
[1725012607178,0.05297824,139.74,139.71,0.04961274]
[1725012607576,3.63087824,139.74,139.72,3.5782]
[1725012609377,0.05297824,139.74,139.73,3.5781]
[1725012609674,0.05297824,139.74,139.71,11.04961274]
[1725012609675,0.05297824,139.74,139.72,11.0]
[1725012610584,0.05297824,139.74,139.73,3.5781]
[1725012614587,0.05297824,139.74,139.73,14.5781]
[1725012616079,3.5766,139.79,139.73,11.0]
[1725012616281,11.0,139.79,139.73,11.0]
[1725012616788,3.5769,139.78,139.75,3.5774]
[1725012617090,3.63110165,139.78,139.75,3.63137729]
[1725012618486,3.5771,139.77,139.75,3.63137729]
[1725012619585,3.5771,139.77,139.75,0.05397729]
[1725012619789,0.05420165,139.78,139.75,0.05397729]
[1725012620178,3.5772,139.77,139.75,0.05397729]
[1725012620393,11.05420165,139.78,139.75,0.05397729]
[1725012620579,14.5773,139.76,139.75,0.05397729]
[1725012623380,3.5781,139.73,139.68,15.1223]
[1725012624092,3.5781,139.73,139.7,3.5787]
[1725012624280,3.62881716,139.73,139.7,3.62904732]
[1725012625786,3.62881716,139.73,139.71,3.5786]
[1725012625985,3.62881716,139.73,139.7,0.05034732]
[1725012626893,3.5784,139.72,139.7,3.62894732]
[1725012627087,3.5784,139.72,139.7,0.05034732]
[1725012627884,3.5786,139.71,139.7,0.05034732]
[1725012632387,3.5785,139.72,139.7,3.62924732]
[1725012636191,3.62891716,139.73,139.71,3.5786]
[1725012636393,0.05071716,139.73,139.7,11.05034732]
[1725012637297,0.05071716,139.73,139.72,3.5784]
[1725012651909,0.05071716,139.73,139.72,14.5784]
[1725012655626,0.05071716,139.73,139.72,3.5784]
[1725012656709,0.05071716,139.73,139.71,3.5784]
[1725012656918,0.05071716,139.73,139.7,0.05034732]
[1725012657114,0.05071716,139.73,139.71,3.5784]
[1725012657815,0.05071716,139.73,139.72,3.5784]
[1725012666325,20.03571887,139.82,139.78,3.5768]
[1725012666628,21.35531887,139.86,139.78,11.0]
[1725012666927,4.3,139.85,139.8,3.5761]
[1725012667131,3.57296137,139.84,139.8,3.5761]
[1725012667431,0.04826714,139.83,139.81,0.04514903]
[1725012668336,3.62386714,139.83,139.81,0.04514903]
[1725012672560,3.5758,139.82,139.81,0.04514903]
[1725012673224,14.5758,139.82,139.81,0.04514903]
[1725012676027,3.5758,139.82,139.81,0.04514903]
[1725012677539,3.62386714,139.83,139.81,0.04514903]
[1725012682142,0.04826714,139.83,139.82,11.0]
[1725012683646,0.04826714,139.83,139.82,14.5758]
[1725012685848,0.04826714,139.83,139.82,18.8758]
[1725012686153,0.04826714,139.83,139.82,14.5758]
[1725012686649,0.04826714,139.83,139.82,18.8758]
[1725012686954,0.04826714,139.83,139.82,14.5758]
[1725012687548,0.04826714,139.83,139.82,18.8758]
[1725012688243,0.04826714,139.83,139.82,14.5758]
[1725012688444,0.04826714,139.83,139.82,18.8758]
[1725012688643,0.04826714,139.83,139.82,3.5758]
[1725012688849,0.04826714,139.83,139.81,0.04514903]
[1725012689448,0.04826714,139.83,139.81,11.04514903]
[1725012689649,0.04826714,139.83,139.82,3.5758]
[1725012690757,0.04826714,139.83,139.82,14.5758]
[1725012694050,0.04826714,139.83,139.82,3.5758]
[1725012705170,0.04826714,139.83,139.81,3.62094903]
[1725012706170,0.04826714,139.83,139.81,0.04514903]
[1725012706872,3.5758,139.82,139.81,0.04514903]
[1725012708270,14.5758,139.82,139.81,0.04514903]
[1725012711173,11.0,139.82,139.75,4.38]
[1725012711374,4.1647,139.85,139.74,4.93307725]
[1725012711375,11.0,139.8,139.74,4.93307725]
[1725012711675,11.0,139.8,139.74,1.2841]
[1725012711881,3.5768,139.78,139.76,3.5772]
[1725012712186,3.62703831,139.78,139.76,3.62514103]
[1725012712483,0.05023831,139.78,139.76,0.04794103]
[1725012713278,0.05023831,139.78,139.77,3.5771]
[1725012721588,2.7524,139.85,139.81,3.5759]
[1725012722188,13.7524,139.85,139.81,3.5759]
[1725012722688,3.62260268,139.84,139.82,0.04620849]
[1725012723192,3.5755,139.83,139.82,0.04620849]
[1725012729810,0.04710268,139.84,139.82,3.62190849]
[1725012729811,3.62250268,139.84,139.82,3.62190849]
[1725012730105,3.62250268,139.84,139.82,0.04620849]
[1725012730106,0.04710268,139.84,139.82,0.04620849]
[1725012730902,0.04710268,139.84,139.82,3.62180849]
[1725012731400,0.04710268,139.84,139.83,3.5755]
[1725012735707,3.5742,139.89,139.86,3.5746]
[1725012736710,3.62849892,139.89,139.86,3.62343974]
[1725012738009,3.62849892,139.89,139.87,3.5745]
[1725012740015,11.05429892,139.89,139.86,3.62343974]
[1725012740305,3.5743,139.88,139.86,3.62343974]
[1725012742114,3.62839892,139.89,139.87,3.5744]
[1725012742518,3.5743,139.88,139.86,3.62353974]
[1725012743012,0.05429892,139.89,139.86,3.62353974]
[1725012743417,3.62839892,139.89,139.86,3.62353974]
[1725012747013,14.5745,139.88,139.86,0.04883974]
[1725012747417,3.5745,139.88,139.86,0.04883974]
[1725012747606,3.62839892,139.89,139.86,3.62353974]
[1725012755124,3.5743,139.88,139.86,3.62353974]
[1725012758028,3.62849892,139.89,139.87,3.5745]
[1725012760028,3.62849892,139.89,139.86,0.04883974]
[1725012760029,3.5743,139.88,139.86,3.62343974]
[1725012771847,3.62839892,139.89,139.87,3.5745]
[1725012775846,3.5743,139.88,139.86,3.62343974]
[1725012779449,3.5745,139.87,139.86,0.04883974]
[1725012781052,14.5745,139.87,139.86,0.04883974]
[1725012781355,7.8943,139.88,139.86,0.04883974]
[1725012781553,3.5743,139.88,139.86,0.04883974]
[1725012782449,3.5743,139.88,139.86,3.62343974]
[1725012783454,3.62849892,139.89,139.87,3.5745]
[1725012784054,3.62849892,139.89,139.86,3.62343974]
[1725012784456,3.5743,139.88,139.86,3.62343974]
[1725012786255,3.5745,139.87,139.86,0.04883974]
[1725012786450,0.05429892,139.89,139.86,0.04883974]
[1725012787451,3.5744,139.88,139.86,0.04883974]
[1725012794364,3.5745,139.87,139.86,0.04883974]
[1725012794960,3.5744,139.88,139.86,0.04883974]
[1725012796658,3.5745,139.87,139.86,0.04883974]
[1725012799865,14.5745,139.87,139.86,0.04883974]
[1725012800070,3.5753,139.85,139.82,3.5757]
[1725012800967,3.62136912,139.85,139.82,3.62299326]
[1725012801963,0.04606912,139.85,139.82,3.62299326]
[1725012802166,3.5753,139.84,139.82,3.62299326]
[1725012803773,3.5755,139.83,139.82,0.04729326]
[1725012807869,3.58179536,139.84,139.75,3.5775]
[1725012808062,11.0,139.79,139.73,11.0]
[1725012808374,1.3073,139.82,139.72,4.3]
[1725012808375,3.577,139.78,139.74,11.0]
[1725012809077,0.05448885,139.77,139.75,0.05023683]
[1725012809373,0.05448885,139.77,139.75,3.62783683]
[1725012810665,0.05448885,139.77,139.75,0.05023683]
[1725012811874,3.63158885,139.77,139.75,0.05023683]
[1725012812465,0.05448885,139.77,139.75,0.05023683]
[1725012813178,3.63178885,139.77,139.75,0.05023683]
[1725012817879,14.5773,139.76,139.75,0.05023683]
[1725012819774,3.5773,139.76,139.75,0.05023683]
[1725012820472,3.63158885,139.77,139.75,0.05023683]
[1725012822178,14.63158885,139.77,139.75,0.05023683]
[1725012823670,0.05448885,139.77,139.76,3.5773]
[1725012825680,11.0,139.83,139.78,3.5768]
[1725012825878,15.34,139.83,139.78,3.5768]
[1725012826081,11.0,139.83,139.78,3.5768]
[1725012826383,3.576,139.82,139.78,3.5768]
[1725012826577,0.05275485,139.81,139.79,0.05163631]
[1725012826879,0.05275485,139.81,139.79,3.62813631]
[1725012830078,0.05275485,139.81,139.8,3.5763]
[1725012836187,57.77688138,139.94,139.8,11.0]
[1725012836385,11.0,139.87,139.82,11.0]
[1725012836801,11.0,139.87,139.83,3.5754]
[1725012837292,3.62473642,139.86,139.84,0.04942095]
[1725012837996,0.04973642,139.86,139.84,3.62452095]
[1725012838794,3.62453642,139.86,139.84,3.62452095]
[1725012839291,3.62453642,139.86,139.84,0.04942095]
[1725012845299,11.0,139.85,139.84,0.04942095]
[1725012845694,3.575,139.85,139.84,0.04942095]
[1725012845993,11.04973642,139.86,139.84,0.04942095]
[1725012846898,14.62463642,139.86,139.84,0.04942095]
[1725012849298,3.62463642,139.86,139.84,0.04942095]
[1725012851395,3.62463642,139.86,139.84,3.62472095]
[1725012855632,3.62463642,139.86,139.84,0.04942095]
[1725012856514,14.62463642,139.86,139.84,0.04942095]
[1725012858625,3.575,139.85,139.84,0.04942095]
[1725012859921,3.62463642,139.86,139.84,0.04942095]
[1725012860326,0.04973642,139.86,139.84,3.62452095]
[1725012861429,3.62453642,139.86,139.84,0.04942095]
[1725012861931,3.62463642,139.86,139.84,0.04942095]
[1725012862821,3.575,139.85,139.84,0.04942095]
[1725012873231,3.62463642,139.86,139.84,0.04942095]
[1725012873429,11.04973642,139.86,139.84,0.04942095]
[1725012873826,3.575,139.85,139.84,0.04942095]
[1725012875126,3.62463642,139.86,139.84,0.04942095]
[1725012878132,0.04973642,139.86,139.84,3.62462095]
[1725012880036,3.62463642,139.86,139.84,3.62462095]
[1725012881134,0.04973642,139.86,139.84,3.62462095]
[1725012881331,0.04973642,139.86,139.85,3.575]
[1725012883840,3.5738,139.9,139.87,3.5743]
[1725012884047,3.5738,139.9,139.85,11.0]
[1725012884542,3.5738,139.9,139.88,3.5742]
[1725012884942,3.62740922,139.9,139.88,3.62681693]
[1725012885540,3.574,139.89,139.88,0.05261693]
[1725012885744,14.574,139.89,139.88,0.05261693]
[1725012886441,0.05360922,139.9,139.88,0.05261693]
[1725012886442,3.62750922,139.9,139.88,0.05261693]
[1725012886643,14.62750922,139.9,139.88,0.05261693]
[1725012887352,3.574,139.89,139.88,0.05261693]
[1725012888573,14.574,139.89,139.88,0.05261693]
[1725012889248,3.574,139.89,139.88,0.05261693]
[1725012893050,14.62750922,139.9,139.88,0.05261693]
[1725012894453,3.62750922,139.9,139.88,0.05261693]
[1725012901350,3.574,139.89,139.88,0.05261693]
[1725012901555,14.574,139.89,139.88,0.05261693]
[1725012905757,18.914,139.89,139.88,0.05261693]
[1725012906251,3.5748,139.86,139.83,3.5754]
[1725012906855,3.575,139.85,139.83,3.5754]
[1725012907359,14.62895456,139.85,139.83,0.04835988]
[1725012911558,3.5753,139.84,139.83,0.04835988]
[1725012913365,0.05395456,139.85,139.83,0.04835988]
[1725012913569,0.05395456,139.85,139.83,11.04835988]
[1725012914466,0.05395456,139.85,139.84,3.5753]
[1725012914669,3.5746,139.87,139.83,11.04835988]
[1725012914857,3.5746,139.87,139.85,3.5749]
[1725012915766,3.62940298,139.87,139.85,3.5749]
[1725012917177,0.05480298,139.87,139.86,3.5748]
[1725012918671,0.05480298,139.87,139.85,3.5749]
[1725012918975,0.05480298,139.87,139.84,5.6998]
[1725012919680,0.05480298,139.87,139.85,3.63346561]
[1725012919978,0.05480298,139.87,139.86,3.5748]
[1725012923077,0.05480298,139.87,139.86,14.5748]
[1725012926985,0.05480298,139.87,139.86,18.8948]
[1725012927178,0.05480298,139.87,139.86,14.5748]
[1725012927374,0.05480298,139.87,139.86,18.8948]
[1725012930879,2.5969,139.94,139.93,3.573]
[1725012931082,14.52726752,139.96,139.93,3.573]
[1725012931279,11.0,139.96,139.93,3.573]
[1725012931493,14.5724,139.96,139.93,3.573]
[1725012931885,18.11753615,139.96,139.93,3.573]
[1725012932082,3.5725,139.95,139.93,3.573]
[1725012932282,3.5725,139.95,139.93,3.62698078]
[1725012932991,3.5725,139.95,139.93,0.05398078]
[1725012933496,14.62241581,139.96,139.93,3.62688078]
[1725012937887,0.05011581,139.96,139.93,0.05398078]
[1725012938391,0.05011581,139.96,139.93,11.05398078]
[1725012939295,0.05011581,139.96,139.95,3.5725]
[1725012944499,0.05011581,139.96,139.93,11.05398078]
[1725012944500,0.05011581,139.96,139.94,3.5725]
[1725012944698,11.05011581,139.96,139.94,3.5725]
[1725012946104,0.05011581,139.96,139.94,3.5725]
[1725012946403,11.05011581,139.96,139.94,3.5725]
[1725012946905,14.62231581,139.96,139.94,3.5725]
[1725012947100,14.62231581,139.96,139.93,0.05398078]
[1725012947397,0.05011581,139.96,139.93,11.05398078]
[1725012947601,0.05011581,139.96,139.94,11.0]
[1725012947897,0.05011581,139.96,139.95,3.5725]
[1725012954404,0.05011581,139.96,139.94,3.5726]
[1725012957808,0.05011581,139.96,139.93,0.05398078]
[1725012958413,3.5726,139.95,139.93,3.62688078]
[1725012959213,3.62251581,139.96,139.93,3.62688078]
[1725012960109,0.05011581,139.96,139.93,11.05398078]
[1725012960715,0.05011581,139.96,139.94,3.5727]
[1725012961514,0.05011581,139.96,139.95,3.5725]
[1725012961905,0.05011581,139.96,139.95,14.5725]
[1725012964919,0.05011581,139.96,139.95,3.5725]
[1725012968516,3.62241581,139.96,139.94,3.5727]
[1725012969211,0.05011581,139.96,139.94,3.5727]
[1725012969817,0.05011581,139.96,139.95,3.5725]
[1725012973334,0.05011581,139.96,139.93,0.05398078]
[1725012973721,3.62251581,139.96,139.93,3.62688078]
[1725012975232,3.5725,139.95,139.93,3.62688078]
[1725012975619,0.05011581,139.96,139.93,0.05398078]
[1725012975824,3.5727,139.94,139.93,0.05398078]
[1725012982033,3.5726,139.95,139.93,0.05398078]
[1725012982423,0.05011581,139.96,139.93,0.05398078]
[1725012982632,0.05011581,139.96,139.94,3.5726]
[1725012984430,3.62241581,139.96,139.94,3.5726]
[1725012987127,0.05011581,139.96,139.95,3.5725]
[1725012989137,0.05011581,139.96,139.95,14.5725]
[1725012990329,2.636,140.02,139.98,3.5716]
[1725012990729,13.636,140.02,139.98,3.5716]
[1725012990934,3.5711,140.01,139.98,3.5716]
[1725012991430,3.59469666,140.01,139.98,3.62032822]
[1725012992436,14.5712,140.0,139.98,3.62032822]
[1725012992637,14.5712,140.0,139.98,0.04872822]
[1725012992832,11.0,140.0,139.98,0.04872822]
[1725012993541,14.5713,140.0,139.98,0.04872822]
[1725012993940,3.5713,140.0,139.98,3.62042822]
[1725012996333,3.59469666,140.01,139.98,3.62042822]
[1725012997434,11.0,139.99,139.98,0.04872822]
[1725012998144,0.02359666,140.01,139.98,0.04872822]
[1725012998945,11.02359666,140.01,139.98,0.04872822]
[1725012999847,3.5715,139.99,139.98,0.04872822]
[1725013001337,3.5714,140.0,139.98,0.04872822]
[1725013002048,3.5715,139.99,139.98,0.04872822]
[1725013006554,0.02359666,140.01,139.98,11.04872822]
[1725013006753,0.02359666,140.01,139.98,0.04872822]
[1725013007051,3.59469666,140.01,139.99,3.5713]